fUSD/lending_fUSD_20240515
["ID","MTS","AMOUNT","RATE_DAILY","PERIOD"]
[327083583,1715799034212,-500.0,0.00011998,2]
[327083584,1715799034221,-518.03081576,0.00011998,2]
[327083585,1715799034231,-500.0,0.00011998,2]
[327083586,1715799034240,-245.74469309,0.00011998,2]
[327083587,1715799034249,-435.523,0.00011998,2]
[327083588,1715799034258,-500.0,0.00011998,2]
[327083589,1715799034267,-500.0,0.00011998,2]
[327083590,1715799034276,-462.26084137,0.00011998,2]
[327083591,1715799034286,-500.0,0.00011998,2]
[327083592,1715799034295,-500.0,0.00011998,2]
[327083593,1715799034304,-500.0,0.00011998,2]
[327083594,1715799034313,-500.0,0.00011998,2]
[327083595,1715799034322,-187.61229863,0.00011998,2]
[327083596,1715799034333,-500.0,0.00011998,2]
[327083597,1715799034342,-230.85,0.00011998,2]
[327083598,1715799034351,-500.0,0.00011998,2]
[327083599,1715799034360,-500.0,0.00011998,2]
[327083600,1715799034369,-500.0,0.00011999,2]
[327083601,1715799034378,-500.0,0.00011999,2]
[327083602,1715799034387,-224.68471681,0.00011999,2]
[327083603,1715799034396,-500.0,0.00011999,2]
[327083604,1715799034405,-500.0,0.00011999,2]
[327083605,1715799034414,-500.0,0.00011999,2]
[327083606,1715799034424,-500.0,0.00011999,2]
[327083607,1715799034433,-530.7074558,0.00011999,2]
[327083608,1715799034442,-500.0,0.00011999,2]
[327083609,1715799034451,-500.0,0.00011999,2]
[327083610,1715799034461,-524.61298042,0.00011999,2]
[327083611,1715799034470,-500.0,0.00011999,2]
[327083612,1715799034480,-578.04,0.00011999,2]
[327083613,1715799034489,-500.0,0.00011999,2]
[327083614,1715799034498,-500.0,0.00011999,2]
[327083615,1715799034507,-500.0,0.00011999,2]
[327083616,1715799034516,-500.0,0.00011999,2]
[327083617,1715799034526,-500.0,0.00011999,2]
[327083618,1715799034536,-500.0,0.00011999,2]
[327083619,1715799034545,-509.96767394,0.00011999,2]
[327083620,1715799034556,-525.83608396,0.00011999,2]
[327083621,1715799034565,-500.0,0.00011999,2]
[327083622,1715799034575,-202.14,0.00011999,2]
[327083623,1715799034587,-500.0,0.00011999,2]
[327083624,1715799034597,-500.0,0.00011999,2]
[327083625,1715799034606,-500.0,0.00011999,2]
[327083626,1715799034615,-500.0,0.00011999,2]
[327083627,1715799034625,-500.0,0.00011999,2]
[327083628,1715799034634,-500.0,0.00011999,2]
[327083629,1715799034643,-500.0,0.00011999,2]
[327083630,1715799034652,-500.0,0.00011999,2]
[327083631,1715799034661,-327.8,0.00011999,2]
[327083632,1715799034670,-500.0,0.00011999,2]
[327083633,1715799034679,-500.0,0.00011999,2]
[327083634,1715799034688,-500.0,0.00011999,2]
[327083635,1715799034698,-500.0,0.00011999,2]
[327083636,1715799034707,-500.0,0.00011999,2]
[327083637,1715799034716,-332.83584293,0.00011999,2]
[327083638,1715799034726,-500.0,0.00011999,2]
[327083639,1715799034738,-500.0,0.00011999,2]
[327083640,1715799034747,-500.0,0.00011999,2]
[327083641,1715799034757,-204.02165861,0.00011999,2]
[327083642,1715799034767,-500.0,0.00011999,2]
[327083643,1715799034775,-500.0,0.00011999,2]
[327083644,1715799034784,-500.0,0.00011999,2]
[327083645,1715799034794,-500.0,0.00011999,2]
[327083646,1715799034803,-500.0,0.00011999,2]
[327083647,1715799034815,-500.0,0.00011999,2]
[327083648,1715799034823,-500.0,0.00011999,2]
[327083649,1715799034836,-500.0,0.00011999,2]
[327083650,1715799034844,-500.0,0.00011999,2]
[327083651,1715799034853,-500.0,0.00011999,2]
[327083652,1715799034862,-500.0,0.00011999,2]
[327083653,1715799034871,-500.0,0.00011999,2]
[327083654,1715799034880,-500.0,0.00011999,2]
[327083655,1715799034889,-507.44327746,0.00011999,2]
[327083656,1715799034899,-500.0,0.00011999,2]
[327083657,1715799034908,-500.0,0.00011999,2]
[327083658,1715799034917,-500.0,0.00011999,2]
[327083659,1715799034927,-500.0,0.00011999,2]
[327083660,1715799034936,-500.0,0.00011999,2]
[327083661,1715799034945,-500.0,0.00011999,2]
[327083662,1715799034954,-500.0,0.00011999,2]
[327083663,1715799034963,-505.74711942,0.00011999,2]
[327083664,1715799034972,-500.0,0.00011999,2]
[327083665,1715799034982,-508.14681681,0.00011999,2]
[327083666,1715799034991,-500.0,0.00011999,2]
[327083667,1715799035000,-500.0,0.00011999,2]
[327083668,1715799035009,-500.0,0.00011999,2]
[327083669,1715799035019,-500.0,0.00011999,2]
[327083670,1715799035029,-506.82644763,0.00011999,2]
[327083671,1715799035038,-507.62122426,0.00011999,2]
[327083672,1715799035047,-500.0,0.00011999,2]
[327083673,1715799035057,-500.0,0.00011999,2]
[327083674,1715799035066,-500.0,0.00011999,2]
[327083675,1715799035075,-502.83430674,0.00011999,2]
[327083676,1715799035085,-500.0,0.00011999,2]
[327083677,1715799035094,-500.0,0.00011999,2]
[327083678,1715799035103,-500.0,0.00011999,2]
[327083679,1715799035112,-500.0,0.00011999,2]
[327083680,1715799035122,-500.0,0.00011999,2]
[327083681,1715799035131,-500.0,0.00011999,2]
[327083682,1715799035141,-500.0,0.00011999,2]
[327083683,1715799035150,-521.83339821,0.00011999,2]
[327083684,1715799035160,-500.0,0.00011999,2]
[327083685,1715799035170,-500.0,0.00011999,2]
[327083686,1715799035179,-500.0,0.00011999,2]
[327083687,1715799035189,-500.0,0.00011999,2]
[327083688,1715799035199,-500.0,0.00011999,2]
[327083689,1715799035208,-500.0,0.00011999,2]
[327083690,1715799035219,-184.78,0.00011999,2]
[327083691,1715799035228,-500.0,0.00011999,2]
[327083692,1715799035237,-535.39179015,0.00011999,2]
[327083693,1715799035247,-500.0,0.00011999,2]
[327083694,1715799035257,-289.7171649,0.00011999,2]
[327083695,1715799035267,-500.0,0.00011999,2]
[327083696,1715799035276,-500.0,0.00011999,2]
[327083697,1715799035286,-500.0,0.00011999,2]
[327083698,1715799035295,-500.0,0.00011999,2]
[327083699,1715799035305,-500.0,0.00011999,2]
[327083700,1715799035315,-500.0,0.00011999,2]
[327083701,1715799035325,-500.0,0.00011999,2]
[327083702,1715799035336,-500.0,0.00011999,2]
[327083703,1715799035345,-500.0,0.00011999,2]
[327083704,1715799035355,-645.03508076,0.00011999,2]
[327083705,1715799035364,-500.0,0.00011999,2]
[327083706,1715799035373,-500.0,0.00011999,2]
[327083707,1715799035382,-500.0,0.00011999,2]
[327083708,1715799035392,-500.0,0.00011999,2]
[327083709,1715799035401,-500.0,0.00011999,2]
[327083710,1715799035411,-500.0,0.00011999,2]
[327083711,1715799035420,-500.0,0.00011999,2]
[327083712,1715799035429,-500.0,0.00011999,2]
[327083713,1715799035439,-500.0,0.00011999,2]
[327083714,1715799035449,-530.95,0.00011999,2]
[327083715,1715799035458,-658296.62573928,0.00012,2]
[327083716,1715799035473,-6566.03609594,0.00012,2]
[327083717,1715799035484,-7289.9674728,0.00012,2]
[327083718,1715799035495,-33381.81367591,0.00012,2]
[327083719,1715799035506,-22714.8706778,0.00012,2]
[327083720,1715799035518,-34507.64936098,0.00012,2]
[327083724,1715799038551,-155.0,9.988e-05,2]
[327083726,1715799038561,-1319.3866235,0.00012,2]
[327083728,1715799038572,-53088.78257424,0.00012,2]
[327083730,1715799038587,-300.32,0.00012,2]
[327083740,1715799038882,-529.12011047,0.00012,2]
[327083741,1715799038895,-9409.98768925,0.00012,2]
[327083742,1715799038907,-17426.94860785,0.00012,2]
[327083743,1715799038918,-2615.2295766,0.00012,2]
[327083744,1715799038929,-2831.60374502,0.00012,2]
[327083746,1715799039293,-600.5,0.00012,2]
[327083747,1715799039305,-1237.47238105,0.00012,2]
[327083748,1715799039318,-1086.56026731,0.00012,2]
[327083749,1715799039330,-49725.1742303,0.00012,2]
[327083750,1715799039344,-3099.61413674,0.00012,2]
[327083776,1715799043616,-2068.392193,0.00012,2]
[327083778,1715799043627,-3557.86121742,0.00012,2]
[327083781,1715799043643,-6757.96750055,0.00012,2]
[327083785,1715799043655,-32793.82785512,0.00012,2]
[327083789,1715799043666,-1617.592005,0.00012,2]
[327083793,1715799043677,-1363.68834929,0.00012,2]
[327083796,1715799043688,-455.64,0.00012,2]
[327083799,1715799043699,-17101.65083585,0.00012,2]
[327083832,1715799043916,-567328.93867715,0.00012,2]
[327083834,1715799043926,-1000.0,0.00012,2]
[327083835,1715799043936,-19623.11442373,0.00012,2]
[327083836,1715799043946,-410.03425881,0.00012,2]
[327083837,1715799043956,-18061.85873408,0.00012,2]
[327083838,1715799043966,-217.50905398,0.00012025,2]
[327083839,1715799043975,-151.809098,0.00012029,2]
[327083840,1715799043984,-164.138504,0.00012029,2]
[327083841,1715799043994,-207.038691,0.00012029,2]
[327083842,1715799044003,-171.4,0.00012033,2]
[327083843,1715799044013,-200.0,0.00012036,2]
[327083844,1715799044022,-2133.964,0.00012038,2]
[327083845,1715799044032,-1789.0,0.00012038,2]
[327083846,1715799044043,-1225.0,0.00012038,2]
[327083847,1715799044052,-1261.0,0.00012038,2]
[327083848,1715799044062,-170.144,0.00012038,2]
[327083850,1715799044071,-422.0,0.00012038,2]
[327083851,1715799044080,-439.0,0.00012038,2]
[327083853,1715799044091,-371.654,0.00012038,2]
[327083855,1715799044100,-1136.249,0.00012038,2]
[327083857,1715799044109,-302.637,0.00012038,2]
[327083859,1715799044119,-213.0,0.00012038,2]
[327083860,1715799044128,-1464.0,0.00012038,2]
[327083862,1715799044137,-352.459,0.00012038,2]
[327083864,1715799044146,-5748.0,0.00012038,2]
[327083866,1715799044155,-288.0,0.00012038,2]
[327083867,1715799044164,-154.0,0.00012038,2]
[327083868,1715799044173,-415.22,0.00012055,2]
[327083869,1715799044182,-869.03,0.00012055,2]
[327083870,1715799044191,-415.22,0.00012055,2]
[327083871,1715799044200,-869.03,0.00012055,2]
[327083872,1715799044209,-867.8,0.00012055,2]
[327083873,1715799044218,-413.51,0.00012055,2]
[327083874,1715799044227,-157.99910777,0.00012064,2]
[327083875,1715799044236,-502.0,0.00012067,2]
[327083876,1715799044246,-4068.70389354,0.00012082,2]
[327083877,1715799044255,-155.74380215,0.0001215,2]
[327083878,1715799044264,-217.50905398,0.0001215,2]
[327083879,1715799044272,-200.0,0.00012152,2]
[327083880,1715799044281,-1000.0,0.00012152,2]
[327083881,1715799044290,-500.0,0.00012152,2]
[327083882,1715799044299,-4068.70389354,0.00012173,2]
[327083883,1715799044308,-152.06,0.00012192,2]
[327083884,1715799044317,-1047.0,0.00012192,2]
[327083885,1715799044326,-150.0,0.00012192,2]
[327083886,1715799044336,-150.0,0.00012192,2]
[327083888,1715799044344,-163.35,0.00012192,2]
[327083889,1715799044353,-150.56,0.00012192,2]
[327083891,1715799044362,-300.0,0.00012192,2]
[327083893,1715799044371,-420.44,0.00012192,2]
[327083895,1715799044380,-150.0,0.00012192,2]
[327083898,1715799044388,-351.56,0.00012192,2]
[327083901,1715799044398,-150.0,0.00012192,2]
[327083904,1715799044407,-150.0,0.00012192,2]
[327083906,1715799044416,-523.66,0.00012192,2]
[327083908,1715799044426,-150.0,0.00012192,2]
[327083910,1715799044435,-150.0,0.00012192,2]
[327083912,1715799044444,-163.35,0.00012192,2]
[327083914,1715799044454,-150.0,0.00012192,2]
[327083916,1715799044463,-420.44,0.00012192,2]
[327083917,1715799044473,-150.0,0.00012192,2]
[327083918,1715799044482,-351.56,0.00012192,2]
[327083919,1715799044491,-420.44,0.00012192,2]
[327083920,1715799044500,-150.0,0.00012192,2]
[327083921,1715799044510,-523.66,0.00012192,2]
[327083922,1715799044519,-150.0,0.00012192,2]
[327083923,1715799044529,-150.0,0.00012192,2]
[327083924,1715799044538,-150.0,0.00012192,2]
[327083925,1715799044547,-150.0,0.00012192,2]
[327083926,1715799044557,-351.56,0.00012192,2]
[327083927,1715799044566,-150.0,0.00012192,2]
[327083928,1715799044575,-163.35,0.00012192,2]
[327083929,1715799044585,-150.0,0.00012192,2]
[327083930,1715799044595,-420.44,0.00012192,2]
[327083931,1715799044604,-523.66,0.00012192,2]
[327083932,1715799044613,-162.52,0.00012192,2]
[327083933,1715799044622,-351.56,0.00012192,2]
[327083934,1715799044632,-150.0,0.00012192,2]
[327083935,1715799044641,-150.0,0.00012192,2]
[327083936,1715799044651,-150.0,0.00012192,2]
[327083937,1715799044660,-150.0,0.00012192,2]
[327083938,1715799044670,-420.44,0.00012192,2]
[327083939,1715799044679,-523.66,0.00012192,2]
[327083940,1715799044688,-351.56,0.00012192,2]
[327083941,1715799044697,-150.0,0.00012192,2]
[327083942,1715799044707,-150.0,0.00012192,2]
[327083943,1715799044716,-523.66,0.00012192,2]
[327083944,1715799044727,-420.44,0.00012192,2]
[327083945,1715799044739,-735.12,0.00012192,2]
[327083946,1715799044749,-420.44,0.00012192,2]
[327083947,1715799044758,-523.66,0.00012192,2]
[327083948,1715799044767,-150.0,0.00012192,2]
[327083949,1715799044778,-721.12,0.00012192,2]
[327083950,1715799044787,-523.66,0.00012192,2]
[327083951,1715799044796,-522.86,0.00012192,2]
[327083952,1715799044805,-157.99910777,0.00012203,2]
[327083953,1715799044817,-150.0,0.0001225,2]
[327083954,1715799044827,-4068.70389354,0.00012264,2]
[327083955,1715799044838,-150.0,0.00012271,2]
[327083956,1715799044849,-217.50905398,0.00012275,2]
[327083957,1715799044858,-1500.0,0.00012276,2]
[327083958,1715799044867,-1500.0,0.00012281,2]
[327083959,1715799044877,-1500.0,0.00012283,2]
[327083960,1715799044886,-150.0,0.00012285,2]
[327083961,1715799044896,-150.0,0.00012285,2]
[327083962,1715799044905,-150.0,0.00012288,2]
[327083963,1715799044914,-5000.0,0.00012311,2]
[327083964,1715799044923,-1500.0,0.00012333,2]
[327083965,1715799044932,-157.99910777,0.00012343,2]
[327083966,1715799044942,-300.0,0.00012353,2]
[327083967,1715799044951,-4068.70389354,0.00012355,2]
[327083968,1715799044961,-272.07613834,0.00012375,2]
[327083969,1715799044970,-1000.0,0.00012399,2]
[327083970,1715799044979,-500.0,0.00012399,2]
[327083971,1715799044988,-155.74380215,0.000124,2]
[327083972,1715799044997,-217.50905398,0.000124,2]
[327083973,1715799045007,-175.77335344,0.000124,2]
[327083974,1715799045016,-1000.0,0.000124,2]
[327083975,1715799045025,-172.42754453,0.000124,2]
[327083976,1715799045035,-190.35446174,0.000124,2]
[327083977,1715799045045,-4068.70389354,0.00012445,2]
[327083978,1715799045055,-150.0,0.00012462,2]
[327083979,1715799045064,-150.0,0.00012466,2]
[327083980,1715799045074,-150.0,0.00012466,2]
[327083981,1715799045083,-150.0,0.00012466,2]
[327083982,1715799045094,-150.0,0.00012466,2]
[327083983,1715799045104,-157.99910777,0.00012482,2]
[327083984,1715799045113,-378.71,0.0001249,2]
[327083985,1715799045123,-151.0,0.0001249,2]
[327083986,1715799045132,-151.0,0.0001249,2]
[327083987,1715799045142,-151.0,0.0001249,2]
[327083988,1715799045153,-151.0,0.0001249,2]
[327083989,1715799045162,-151.0,0.0001249,2]
[327083990,1715799045172,-151.0,0.0001249,2]
[327083991,1715799045182,-151.0,0.0001249,2]
[327083992,1715799045191,-151.0,0.0001249,2]
[327083993,1715799045201,-151.0,0.0001249,2]
[327083994,1715799045210,-151.0,0.0001249,2]
[327083995,1715799045220,-151.0,0.0001249,2]
[327083996,1715799045229,-151.0,0.0001249,2]
[327083997,1715799045239,-151.0,0.0001249,2]
[327083998,1715799045249,-151.0,0.0001249,2]
[327083999,1715799045258,-505.63173081,0.0001249,2]
[327084000,1715799045267,-5064.2899167,0.00012493,2]
[327084001,1715799045277,-182.3844844,0.00012493,2]
[327084002,1715799045287,-500.0,0.00012497,2]
[327084003,1715799045296,-177.5004176,0.00012498,2]
[327084004,1715799045305,-1025.9149878,0.00012498,2]
[327084005,1715799045315,-890.90790075,0.00012498,2]
[327084006,1715799045324,-1163.80373561,0.00012498,2]
[327084007,1715799045334,-155.0,0.00012498,2]
[327084008,1715799045344,-354.15,0.00012498,2]
[327084009,1715799045354,-500.0,0.00012499,2]
[327084010,1715799045364,-485.87578491,0.00012499,2]
[327084011,1715799045374,-500.0,0.00012499,2]
[327084012,1715799045383,-500.0,0.00012499,2]
[327084013,1715799045392,-500.0,0.00012499,2]
[327084014,1715799045402,-500.0,0.00012499,2]
[327084015,1715799045411,-500.0,0.00012499,2]
[327084016,1715799045421,-500.0,0.00012499,2]
[327084017,1715799045430,-500.0,0.00012499,2]
[327084018,1715799045440,-500.0,0.00012499,2]
[327084019,1715799045450,-500.0,0.00012499,2]
[327084020,1715799045460,-500.0,0.00012499,2]
[327084021,1715799045470,-500.0,0.00012499,2]
[327084022,1715799045479,-500.0,0.00012499,2]
[327084023,1715799045489,-500.0,0.00012499,2]
[327084024,1715799045498,-500.0,0.00012499,2]
[327084025,1715799045508,-249.35834395,0.00012499,2]
[327084026,1715799045518,-501865.26213963,0.000125,2]
[327084027,1715799045528,-238037.97854527,0.000125,2]
[327084028,1715799045542,-95409.55189005,0.000125,2]
[327084029,1715799045553,-163709.81517328,0.000125,2]
[327084030,1715799045565,-1383.80611967,0.000125,2]
[327084031,1715799045576,-397.00005046,0.000125,2]
[327084032,1715799045589,-360.68756511,0.000125,2]
[327084033,1715799045603,-1465.856,0.000125,2]
[327084034,1715799045615,-313289.57279657,0.000125,2]
[327084035,1715799045627,-7301.67542658,0.000125,2]
[327084036,1715799045638,-32761.26304628,0.000125,2]
[327084037,1715799045663,-1167.39918678,0.000125,2]
[327084038,1715799045675,-255.46573011,0.000125,2]
[327084039,1715799045686,-322.66136395,0.000125,2]
[327084040,1715799045698,-1452.02912142,0.000125,2]
[327084041,1715799046467,-327.355,0.0001249,2]
[327084048,1715799048531,-150.0,0.00011629,2]
[327084049,1715799048541,-397.94895099,0.0001249,2]
[327084050,1715799048552,-1374.69604901,0.0001249,2]
[327084051,1715799048561,-154110.02488331,0.000125,2]
[327084052,1715799048573,-2220.42189639,0.000125,2]
[327084080,1715799581586,151.0,0.00020469,120]
[327084083,1715799653396,-482.11714899,0.00012497,7]
[327084123,1715800232651,-155.0,9.086e-05,2]
[327084125,1715800232660,-499.74209631,9.087e-05,2]
[327084127,1715800232670,-155.46,9.089e-05,2]
[327084130,1715800232680,-150.0,9.376e-05,2]
[327084133,1715800232689,-150.0,9.376e-05,2]
[327084136,1715800232698,-1609.20790369,9.377e-05,2]
[327084137,1715800232710,-1081.67042576,9.377e-05,2]
[327084139,1715800232721,-26411.86074067,9.377e-05,2]
[327084143,1715800232733,-713.45,9.377e-05,2]
[327084145,1715800232744,-2023.95885393,9.377e-05,2]
[327084146,1715800232756,-1098.60311107,9.377e-05,2]
[327084148,1715800232765,-263.41,0.00010411,2]
[327084150,1715800232775,-250.0,0.00010983,2]
[327084151,1715800232785,-250.0,0.00011003,2]
[327084152,1715800232794,-1364.64,0.00011004,2]
[327084153,1715800232803,-1107.36761439,0.0001101,2]
[327084154,1715800233719,-534.580998,0.0001101,2]
[327084155,1715800233731,-6665.89650835,0.0001101,2]
[327084156,1715800233743,-10622.84894457,0.0001101,2]
[327084157,1715800233755,-2928.13984323,0.0001101,2]
[327084158,1715800233766,-2021.16609146,0.0001101,2]
[327084159,1715800233776,-499.99,0.0001101,2]
[327084160,1715800233786,-303.0,0.0001101,2]
[327084161,1715800233796,-468.75,0.0001106,2]
[327084162,1715800233805,-151.8,0.00011088,2]
[327084163,1715800233814,-341.76,0.00011098,2]
[327084164,1715800233824,-193.46,0.00011098,2]
[327084165,1715800233836,-179.24,0.00011141,2]
[327084166,1715800233845,-341.47,0.00011189,2]
[327084167,1715800233854,-1993.85,0.00011397,2]
[327084168,1715800233863,-436.44,0.00011397,2]
[327084169,1715800233873,-189.51787,0.00011456,2]
[327084170,1715800233893,-655.743512,0.00011456,2]
[327084171,1715800233904,-155.6198,0.00011456,2]
[327084172,1715800233913,-217.593218,0.00011456,2]
[327084173,1715800233923,-2622.974051,0.00011456,2]
[327084174,1715800233935,-189.51787,0.00011456,2]
[327084175,1715800233945,-196.60817,0.00011456,2]
[327084176,1715800233955,-155.6198,0.00011456,2]
[327084177,1715800233965,-870.372869,0.00011456,2]
[327084178,1715800233975,-585.70848,0.00011456,2]
[327084179,1715800233985,-658.24,0.00011554,2]
[327084181,1715800233995,-655.743512,0.00011599,2]
[327084183,1715800234005,-217.593218,0.00011599,2]
[327084185,1715800234014,-2622.974051,0.00011599,2]
[327084187,1715800234024,-870.372869,0.00011599,2]
[327084189,1715800234034,-51.30934773,0.00011599,2]
[327084191,1715800234048,-534.39913227,0.00011599,2]
[327084193,1715800234057,-177.5,0.00011642,2]
[327084195,1715800234067,-151.8,0.00011665,2]
[327084197,1715800234076,-655.743512,0.00011742,2]
[327084199,1715800234090,-217.593218,0.00011742,2]
[327084201,1715800234101,-2622.974051,0.00011742,2]
[327084204,1715800234111,-196.60817,0.00011742,2]
[327084205,1715800234121,-155.6198,0.00011742,2]
[327084206,1715800234132,-624.09344864,0.00011742,2]
[327084207,1715800234144,-246.27942036,0.00011742,2]
[327084208,1715800234154,-585.70848,0.00011742,2]
[327084209,1715800234164,-655.743512,0.00011886,2]
[327084210,1715800234176,-217.593218,0.00011886,2]
[327084211,1715800234185,-2622.974051,0.00011886,2]
[327084212,1715800234196,-870.372869,0.00011886,2]
[327084213,1715800234206,-585.70848,0.00011886,2]
[327084214,1715800234215,-300.0,0.00011918,2]
[327084215,1715800234225,-500.0,0.00011998,2]
[327084216,1715800234235,-500.0,0.00011998,2]
[327084217,1715800234245,-500.0,0.00011998,2]
[327084218,1715800234254,-195.22717998,0.00011999,2]
[327084219,1715800234264,-588.72607669,0.00011999,2]
[327084220,1715800234274,-410.03425881,0.00012,2]
[327084221,1715800234285,-655.743512,0.00012029,2]
[327084222,1715800234295,-217.593218,0.00012029,2]
[327084223,1715800234304,-189.51787,0.00012029,2]
[327084224,1715800234314,-2622.974051,0.00012029,2]
[327084225,1715800234323,-196.60817,0.00012029,2]
[327084226,1715800234333,-155.6198,0.00012029,2]
[327084227,1715800234347,-870.372869,0.00012029,2]
[327084228,1715800234356,-585.70848,0.00012029,2]
[327084229,1715800234366,-150.0,0.00012088,2]
[327084230,1715800234375,-151.35,0.00012088,2]
[327084231,1715800234384,-320.038,0.00012088,2]
[327084232,1715800234393,-1225.0,0.00012088,2]
[327084233,1715800234402,-433.0,0.00012088,2]
[327084234,1715800234412,-415.939,0.00012088,2]
[327084235,1715800234422,-288.0,0.00012088,2]
[327084236,1715800234431,-5748.0,0.00012088,2]
[327084237,1715800234441,-1059.0,0.00012088,2]
[327084238,1715800234451,-171.4,0.00012125,2]
[327084239,1715800234460,-351.56,0.00012192,2]
[327084240,1715800234470,-351.56,0.00012192,2]
[327084241,1715800234479,-351.56,0.00012192,2]
[327084242,1715800234489,-351.56,0.00012192,2]
[327084243,1715800234499,-347.71,0.00012192,2]
[327084244,1715800234509,-1000.0,0.000122,2]
[327084245,1715800234522,-1563.36295832,0.00012222,2]
[327084246,1715800234532,-200.0,0.00012235,2]
[327084247,1715800234541,-157.99910777,0.00012385,2]
[327084248,1715800234551,-155.74380215,0.00012399,2]
[327084249,1715800234561,-4710.82101173,0.00012399,2]
[327084250,1715800234571,-172.42754453,0.00012399,2]
[327084251,1715800234580,-200.0,0.000124,2]
[327084252,1715800234592,-1000.0,0.000124,2]
[327084253,1715800234601,-500.0,0.000124,2]
[327084254,1715800234611,-11825.99505039,0.000124,2]
[327084255,1715800234620,-4710.8210117,0.00012445,2]
[327084256,1715800234629,-150.0,0.00012466,2]
[327084257,1715800234639,-150.0,0.00012466,2]
[327084258,1715800234649,-150.0,0.00012466,2]
[327084259,1715800234658,-150.0,0.00012466,2]
[327084260,1715800234669,-176.42438358,0.00012477,2]
[327084261,1715800234682,-483.38441344,0.00012477,2]
[327084262,1715800234693,-1056.7830963,0.00012477,2]
[327084263,1715800234747,-975.9428,0.00012477,2]
[327084264,1715800234758,-512.42253875,0.00012477,2]
[327084265,1715800234770,-268.59930771,0.00012477,2]
[327084266,1715800234782,-7944.83427842,0.00012477,2]
[327084267,1715800234794,-458.66396705,0.00012477,2]
[327084268,1715800234806,-503.15430007,0.00012477,2]
[327084269,1715800234817,-2620.52964868,0.00012477,2]
[327084270,1715800234827,-341.76,0.00012485,2]
[327084271,1715800234838,-151.01,0.00012489,2]
[327084272,1715800234848,-151.01,0.0001249,2]
[327084273,1715800234857,-52.48171802,0.0001249,2]
[327084298,1715800239005,-1000.0,0.00012028,2]
[327084301,1715800239017,-98.52828198,0.0001249,2]
[327084303,1715800239029,-151.01,0.0001249,2]
[327084305,1715800239043,-151.01,0.0001249,2]
[327084308,1715800239055,-151.01,0.0001249,2]
[327084311,1715800239067,-151.01,0.0001249,2]
[327084314,1715800239078,-4710.8210117,0.0001249,2]
[327084317,1715800239090,-500.0,0.00012496,2]
[327084319,1715800239104,-500.0,0.00012496,2]
[327084321,1715800239116,-500.0,0.00012496,2]
[327084323,1715800239127,-500.0,0.00012496,2]
[327084326,1715800239139,-500.0,0.00012496,2]
[327084328,1715800239151,-300.78,0.00012496,2]
[327084330,1715800239162,-500.0,0.00012496,2]
[327084332,1715800239171,-500.0,0.00012496,2]
[327084334,1715800239184,-263.69,0.00012496,2]
[327084336,1715800239194,-500.0,0.00012496,2]
[327084338,1715800239205,-500.0,0.00012496,2]
[327084340,1715800239218,-221.14,0.00012496,2]
[327084342,1715800239229,-542.21707193,0.00012496,2]
[327084343,1715800239245,-500.31,0.00012496,2]
[327084344,1715800239257,-500.0,0.00012496,2]
[327084345,1715800239269,-500.0,0.00012496,2]
[327084346,1715800239280,-283.24906373,0.00012496,2]
[327084347,1715800239291,-312.38770137,0.00012496,2]